[Event "Titled Tuesday Blitz May 23 Early 2023"]
[White "Simonovic, Miroslav"]
[Black "Rios Escobar, Adan"]
[WhiteFideId "919152"]
[BlackFideId "3403645"]
[WhiteElo "2042"]
[BlackElo "2455"]
[Result "1/2-1/2"]
[Round "03"]
[TimeControl "180+2"]
[Date "2023.05.23"]
[WhiteClock "0:00:37"]
[BlackClock "0:00:02"]

1. d4 {[%clk 0:03:00]}  Nf6 {[%clk 0:02:47]} 2. Bg5 {[%clk 0:03:01]}  e6 {[%clk 0:02:46]} 3. e4 {[%clk 0:03:01]}  c5 {[%clk 0:02:46]} 4. Bxf6 {[%clk 0:02:54]}  Qxf6 {[%clk 0:02:43]} 5. c3 {[%clk 0:02:54]}  Nc6 {[%clk 0:02:29]} 6. Nf3 {[%clk 0:02:54]}  Qd8 {[%clk 0:02:02]} 7. d5 {[%clk 0:02:53]}  Ne7 {[%clk 0:01:47]} 8. d6 {[%clk 0:02:49]}  Ng6 {[%clk 0:01:44]} 9. e5 {[%clk 0:02:47]}  f6 {[%clk 0:01:43]} 10. Bd3 {[%clk 0:02:44]}  c4 {[%clk 0:01:22]} 11. Bxg6+ {[%clk 0:02:42]}  hxg6 {[%clk 0:01:22]} 12. Qc2 {[%clk 0:02:20]}  Kf7 {[%clk 0:01:19]} 13. Nbd2 {[%clk 0:02:20]}  b5 {[%clk 0:01:16]} 14. a4 {[%clk 0:02:20]}  Qb6 {[%clk 0:00:59]} 15. axb5 {[%clk 0:02:07]}  Qxb5 {[%clk 0:00:58]} 16. Qe4 {[%clk 0:01:59]}  Bb7 {[%clk 0:00:56]} 17. Qxc4 {[%clk 0:01:57]}  Qxc4 {[%clk 0:00:28]} 18. Nxc4 {[%clk 0:01:58]}  Bxf3 {[%clk 0:00:26]} 19. gxf3 {[%clk 0:01:56]}  g5 {[%clk 0:00:23]} 20. O-O {[%clk 0:01:24]}  a6 {[%clk 0:00:17]} 21. Ra5 {[%clk 0:01:19]}  Rh4 {[%clk 0:00:15]} 22. b3 {[%clk 0:01:19]}  Rf4 {[%clk 0:00:15]} 23. Kg2 {[%clk 0:01:14]}  g4 {[%clk 0:00:15]} 24. fxg4 {[%clk 0:01:11]}  Rxg4+ {[%clk 0:00:16]} 25. Kf3 {[%clk 0:01:12]}  Rh4 {[%clk 0:00:16]} 26. Rfa1 {[%clk 0:01:11]}  Rxh2 {[%clk 0:00:15]} 27. Rxa6 {[%clk 0:01:10]}  Rxa6 {[%clk 0:00:15]} 28. Rxa6 {[%clk 0:01:11]}  Rh3+ {[%clk 0:00:15]} 29. Ke2 {[%clk 0:00:59]}  Rxc3 {[%clk 0:00:16]} 30. Rb6 {[%clk 0:00:59]}  Kg6 {[%clk 0:00:13]} 31. Rb7 {[%clk 0:00:58]}  Kf5 {[%clk 0:00:12]} 32. Rxd7 {[%clk 0:00:55]}  Rxb3 {[%clk 0:00:11]} 33. Rd8 {[%clk 0:00:52]}  Rc3 {[%clk 0:00:09]} 34. Ne3+ {[%clk 0:00:52]}  Kxe5 {[%clk 0:00:07]} 35. Rxf8 {[%clk 0:00:52]}  Kxd6 {[%clk 0:00:07]} 36. Rg8 {[%clk 0:00:52]}  g5 {[%clk 0:00:07]} 37. Rg6 {[%clk 0:00:52]}  Ke5 {[%clk 0:00:07]} 38. Rh6 {[%clk 0:00:44]}  Ra3 {[%clk 0:00:07]} 39. Ng4+ {[%clk 0:00:44]}  Kf5 {[%clk 0:00:07]} 40. Nxf6 {[%clk 0:00:44]}  e5 {[%clk 0:00:07]} 41. Nd5 {[%clk 0:00:43]}  Rb3 {[%clk 0:00:06]} 42. Ne3+ {[%clk 0:00:41]}  Ke4 {[%clk 0:00:06]} 43. Rg6 {[%clk 0:00:31]}  Rb2+ {[%clk 0:00:06]} 44. Ke1 {[%clk 0:00:31]}  Kf3 {[%clk 0:00:02]} 45. Rxg5 {[%clk 0:00:28]}  Re2+ {[%clk 0:00:02]} 46. Kd1 {[%clk 0:00:26]}  Rxf2 {[%clk 0:00:02]} 47. Rxe5 {[%clk 0:00:27]}  Rg2 {[%clk 0:00:01]} 48. Nc4 {[%clk 0:00:26]}  Rg1+ {[%clk 0:00:01]} 49. Kc2 {[%clk 0:00:26]}  Rg8 {[%clk 0:00:02]} 50. Nd2+ {[%clk 0:00:26]}  Kf4 {[%clk 0:00:02]} 51. Re7 {[%clk 0:00:27]}  Rc8+ {[%clk 0:00:02]} 52. Kd3 {[%clk 0:00:27]}  Rd8+ {[%clk 0:00:03]} 53. Ke2 {[%clk 0:00:27]}  Rd6 {[%clk 0:00:03]} 54. Nc4 {[%clk 0:00:27]}  Rd4 {[%clk 0:00:03]} 55. Ne3 {[%clk 0:00:28]}  Ra4 {[%clk 0:00:03]} 56. Rf7+ {[%clk 0:00:28]}  Ke5 {[%clk 0:00:03]} 57. Re7+ {[%clk 0:00:28]}  Kf4 {[%clk 0:00:03]} 58. Rh7 {[%clk 0:00:29]}  Ra2+ {[%clk 0:00:03]} 59. Kd3 {[%clk 0:00:30]}  Ra3+ {[%clk 0:00:04]} 60. Kd4 {[%clk 0:00:30]}  Ra4+ {[%clk 0:00:03]} 61. Nc4 {[%clk 0:00:30]}  Ra8 {[%clk 0:00:03]} 62. Rf7+ {[%clk 0:00:31]}  Kg5 {[%clk 0:00:03]} 63. Ke4 {[%clk 0:00:32]}  Ra4 {[%clk 0:00:03]} 64. Kd5 {[%clk 0:00:31]}  Ra8 {[%clk 0:00:03]} 65. Ne5 {[%clk 0:00:31]}  Rd8+ {[%clk 0:00:03]} 66. Ke4 {[%clk 0:00:32]}  Ra8 {[%clk 0:00:04]} 67. Rg7+ {[%clk 0:00:32]}  Kh5 {[%clk 0:00:04]} 68. Kf5 {[%clk 0:00:32]}  Rf8+ {[%clk 0:00:03]} 69. Nf7 {[%clk 0:00:33]}  Kh4 {[%clk 0:00:02]} 70. Kf4 {[%clk 0:00:32]}  Kh3 {[%clk 0:00:02]} 71. Kf3 {[%clk 0:00:33]}  Kh2 {[%clk 0:00:01]} 72. Kf4 {[%clk 0:00:31]}  Kh3 {[%clk 0:00:01]} 73. Kf5 {[%clk 0:00:31]}  Kh2 {[%clk 0:00:01]} 74. Kf6 {[%clk 0:00:31]}  Rb8 {[%clk 0:00:01]} 75. Rg5 {[%clk 0:00:31]}  Ra8 {[%clk 0:00:02]} 76. Kf5 {[%clk 0:00:32]}  Ra5+ {[%clk 0:00:02]} 77. Ne5 {[%clk 0:00:33]}  Rb5 {[%clk 0:00:02]} 78. Kf4 {[%clk 0:00:33]}  Rb4+ {[%clk 0:00:02]} 79. Kf3 {[%clk 0:00:33]}  Rb3+ {[%clk 0:00:03]} 80. Kf4 {[%clk 0:00:32]}  Rb4+ {[%clk 0:00:03]} 81. Kf5 {[%clk 0:00:33]}  Rb5 {[%clk 0:00:03]} 82. Rg7 {[%clk 0:00:33]}  Kh3 {[%clk 0:00:03]} 83. Kf4 {[%clk 0:00:32]}  Rb4+ {[%clk 0:00:03]} 84. Ke3 {[%clk 0:00:33]}  Rb3+ {[%clk 0:00:04]} 85. Nd3 {[%clk 0:00:33]}  Ra3 {[%clk 0:00:04]} 86. Rg6 {[%clk 0:00:33]}  Kh4 {[%clk 0:00:04]} 87. Rg8 {[%clk 0:00:32]}  Kh5 {[%clk 0:00:03]} 88. Ke4 {[%clk 0:00:33]}  Ra4+ {[%clk 0:00:04]} 89. Kf5 {[%clk 0:00:33]}  Ra1 {[%clk 0:00:01]} 90. Ne5 {[%clk 0:00:34]}  Rf1+ {[%clk 0:00:01]} 91. Ke6 {[%clk 0:00:34]}  Re1 {[%clk 0:00:01]} 92. Rh8+ {[%clk 0:00:35]}  Kg5 {[%clk 0:00:01]} 93. Rg8+ {[%clk 0:00:36]}  Kf4 {[%clk 0:00:01]} 94. Rf8+ {[%clk 0:00:36]}  Ke4 {[%clk 0:00:01]} 95. Kd6 {[%clk 0:00:36]}  Rd1+ {[%clk 0:00:01]} 96. Ke6 {[%clk 0:00:37]}  Re1 {[%clk 0:00:02]} 97. Rh8 {[%clk 0:00:37]} 1/2-1/2


[Site "https://www.chess.com"]

[Event "Titled Tuesday Blitz May 23 Early 2023"]
[White "Martin, Lewis"]
[Black "Mrudul Dehankar"]
[WhiteFideId "410551"]
[BlackFideId "25096990"]
[WhiteElo "2145"]
[BlackElo "2139"]
[Result "0-1"]
[Round "03"]
[TimeControl "180+2"]
[Date "2023.05.23"]
[WhiteClock "0:00:09"]
[BlackClock "0:00:04"]

1. e4 {[%clk 0:03:00]}  c6 {[%clk 0:02:55]} 2. b3 {[%clk 0:02:59]}  d5 {[%clk 0:02:55]} 3. exd5 {[%clk 0:03:00]}  cxd5 {[%clk 0:02:54]} 4. Bb2 {[%clk 0:03:00]}  Nc6 {[%clk 0:02:53]} 5. Nf3 {[%clk 0:03:00]}  Nf6 {[%clk 0:02:53]} 6. Bb5 {[%clk 0:02:58]}  Bg4 {[%clk 0:02:36]} 7. O-O {[%clk 0:02:55]}  e6 {[%clk 0:02:33]} 8. d3 {[%clk 0:02:48]}  Bd6 {[%clk 0:02:29]} 9. Nbd2 {[%clk 0:02:48]}  O-O {[%clk 0:02:26]} 10. h3 {[%clk 0:02:48]}  Bh5 {[%clk 0:02:22]} 11. Bxc6 {[%clk 0:02:47]}  bxc6 {[%clk 0:02:17]} 12. Re1 {[%clk 0:02:48]}  Nd7 {[%clk 0:01:52]} 13. g4 {[%clk 0:02:35]}  Bg6 {[%clk 0:01:50]} 14. d4 {[%clk 0:02:27]}  a5 {[%clk 0:00:52]} 15. Ne5 {[%clk 0:02:24]}  Nxe5 {[%clk 0:00:41]} 16. dxe5 {[%clk 0:02:25]}  Bc5 {[%clk 0:00:40]} 17. a4 {[%clk 0:02:19]}  Qh4 {[%clk 0:00:23]} 18. Qf3 {[%clk 0:02:14]}  h5 {[%clk 0:00:18]} 19. Nf1 {[%clk 0:01:59]}  Rab8 {[%clk 0:00:10]} 20. Ng3 {[%clk 0:01:52]}  Qxh3 {[%clk 0:00:08]} 21. gxh5 {[%clk 0:01:49]}  Bxh5 {[%clk 0:00:08]} 22. Qg2 {[%clk 0:01:41]}  Qh4 {[%clk 0:00:08]} 23. Nxh5 {[%clk 0:01:14]}  Qxh5 {[%clk 0:00:08]} 24. Rad1 {[%clk 0:01:13]}  Rb4 {[%clk 0:00:08]} 25. Rd3 {[%clk 0:01:12]}  Rg4 {[%clk 0:00:07]} 26. Rg3 {[%clk 0:01:13]}  Rxg3 {[%clk 0:00:08]} 27. Qxg3 {[%clk 0:01:13]}  Rb8 {[%clk 0:00:07]} 28. Bc3 {[%clk 0:01:07]}  Bb6 {[%clk 0:00:05]} 29. Kg2 {[%clk 0:01:03]}  Qf5 {[%clk 0:00:04]} 30. Rh1 {[%clk 0:01:02]}  Qe4+ {[%clk 0:00:04]} 31. Kg1 {[%clk 0:01:00]}  Qxc2 {[%clk 0:00:03]} 32. Qh3 {[%clk 0:00:59]}  Qb1+ {[%clk 0:00:02]} 33. Kg2 {[%clk 0:00:59]}  Qe4+ {[%clk 0:00:02]} 34. Kg3 {[%clk 0:00:56]}  Qg6+ {[%clk 0:00:02]} 35. Kf3 {[%clk 0:00:55]}  Qe4+ {[%clk 0:00:02]} 36. Kg3 {[%clk 0:00:55]}  Qd3+ {[%clk 0:00:03]} 37. f3 {[%clk 0:00:53]}  Qg6+ {[%clk 0:00:01]} 38. Kf4 {[%clk 0:00:52]}  Qh6+ {[%clk 0:00:02]} 39. Qxh6 {[%clk 0:00:51]}  gxh6 {[%clk 0:00:02]} 40. Rxh6 {[%clk 0:00:51]}  Kg7 {[%clk 0:00:03]} 41. Rh3 {[%clk 0:00:45]}  c5 {[%clk 0:00:03]} 42. Kg5 {[%clk 0:00:42]}  Rg8 {[%clk 0:00:02]} 43. Kf4 {[%clk 0:00:35]}  Kf8 {[%clk 0:00:02]} 44. Rg3 {[%clk 0:00:31]}  Rxg3 {[%clk 0:00:02]} 45. Kxg3 {[%clk 0:00:31]}  Ke7 {[%clk 0:00:02]} 46. Kf4 {[%clk 0:00:31]}  Kf8 {[%clk 0:00:01]} 47. Kg5 {[%clk 0:00:29]}  Kg7 {[%clk 0:00:02]} 48. Bb2 {[%clk 0:00:28]}  Bd8+ {[%clk 0:00:02]} 49. Kg4 {[%clk 0:00:28]}  Kg6 {[%clk 0:00:02]} 50. Bc3 {[%clk 0:00:27]}  Bb6 {[%clk 0:00:03]} 51. f4 {[%clk 0:00:27]}  Bc7 {[%clk 0:00:03]} 52. Bb2 {[%clk 0:00:26]}  Bb6 {[%clk 0:00:03]} 53. Bc3 {[%clk 0:00:26]}  d4 {[%clk 0:00:02]} 54. Bd2 {[%clk 0:00:26]}  Bd8 {[%clk 0:00:02]} 55. Be1 {[%clk 0:00:24]}  f5+ {[%clk 0:00:02]} 56. Kf3 {[%clk 0:00:20]}  Kh5 {[%clk 0:00:03]} 57. Bd2 {[%clk 0:00:19]}  Kh4 {[%clk 0:00:02]} 58. Ke2 {[%clk 0:00:19]}  Kg3 {[%clk 0:00:02]} 59. Kd3 {[%clk 0:00:20]}  Kf3 {[%clk 0:00:02]} 60. Kc4 {[%clk 0:00:20]}  Ke4 {[%clk 0:00:02]} 61. Kxc5 {[%clk 0:00:19]}  Kd3 {[%clk 0:00:01]} 62. Be1 {[%clk 0:00:20]}  Ke3 {[%clk 0:00:01]} 63. Kc4 {[%clk 0:00:19]}  d3 {[%clk 0:00:02]} 64. Kc3 {[%clk 0:00:19]}  Bb6 {[%clk 0:00:01]} 65. Bd2+ {[%clk 0:00:18]}  Ke2 {[%clk 0:00:01]} 66. Bc1 {[%clk 0:00:12]}  Bc5 {[%clk 0:00:02]} 67. Kc4 {[%clk 0:00:09]}  Bb4 {[%clk 0:00:03]} 68. Kb5 {[%clk 0:00:07]}  d2 {[%clk 0:00:03]} 69. Bxd2 {[%clk 0:00:07]}  Bxd2 {[%clk 0:00:02]} 70. Kc6 {[%clk 0:00:08]}  Bxf4 {[%clk 0:00:03]} 71. Kd7 {[%clk 0:00:09]}  Bxe5 {[%clk 0:00:02]} 72. Kxe6 {[%clk 0:00:10]}  Bc3 {[%clk 0:00:02]} 73. Kxf5 {[%clk 0:00:09]}  Kd3 {[%clk 0:00:03]} 74. Ke6 {[%clk 0:00:09]}  Kc2 {[%clk 0:00:03]} 75. Kd5 {[%clk 0:00:10]}  Kxb3 {[%clk 0:00:03]} 76. Kc6 {[%clk 0:00:09]}  Kxa4 {[%clk 0:00:04]} 0-1


[Site "https://www.chess.com"]

[Event "Titled Tuesday Blitz May 23 Early 2023"]
[White "Coelho, Ramyres Santana"]
[Black "Bogaudinov, Rushan"]
[WhiteFideId "2120690"]
[BlackFideId "4129288"]
[WhiteElo "1888"]
[BlackElo "1941"]
[Result "0-1"]
[Round "03"]
[TimeControl "180+2"]
[Date "2023.05.23"]
[WhiteClock "0:00:06"]
[BlackClock "0:01:17"]

1. e4 {[%clk 0:03:00]}  c5 {[%clk 0:02:59]} 2. Nf3 {[%clk 0:02:59]}  e6 {[%clk 0:03:00]} 3. d4 {[%clk 0:02:59]}  cxd4 {[%clk 0:03:00]} 4. c3 {[%clk 0:03:00]}  a6 {[%clk 0:03:01]} 5. cxd4 {[%clk 0:02:59]}  d5 {[%clk 0:02:59]} 6. e5 {[%clk 0:02:58]}  Nc6 {[%clk 0:02:59]} 7. Nc3 {[%clk 0:02:58]}  b5 {[%clk 0:02:59]} 8. Bg5 {[%clk 0:02:58]}  Qb6 {[%clk 0:02:58]} 9. Bd3 {[%clk 0:02:38]}  Bd7 {[%clk 0:02:57]} 10. Be3 {[%clk 0:02:36]}  Nge7 {[%clk 0:02:56]} 11. O-O {[%clk 0:02:32]}  Na5 {[%clk 0:02:48]} 12. Rc1 {[%clk 0:02:26]}  Rc8 {[%clk 0:02:47]} 13. Qe2 {[%clk 0:02:17]}  Nc4 {[%clk 0:02:47]} 14. b3 {[%clk 0:02:10]}  Nxe3 {[%clk 0:02:38]} 15. fxe3 {[%clk 0:02:10]}  b4 {[%clk 0:02:39]} 16. Na4 {[%clk 0:02:02]}  Bxa4 {[%clk 0:02:37]} 17. Rxc8+ {[%clk 0:02:00]}  Nxc8 {[%clk 0:02:38]} 18. bxa4 {[%clk 0:01:59]}  Be7 {[%clk 0:02:32]} 19. Bxa6 {[%clk 0:01:56]}  O-O {[%clk 0:02:32]} 20. Rc1 {[%clk 0:01:51]}  Na7 {[%clk 0:02:27]} 21. Bb5 {[%clk 0:01:37]}  g6 {[%clk 0:02:21]} 22. Ne1 {[%clk 0:01:23]}  Rb8 {[%clk 0:02:20]} 23. h3 {[%clk 0:01:12]}  Nxb5 {[%clk 0:02:11]} 24. axb5 {[%clk 0:01:13]}  Qxb5 {[%clk 0:02:12]} 25. Rc8+ {[%clk 0:01:02]}  Kg7 {[%clk 0:02:08]} 26. Qxb5 {[%clk 0:01:00]}  Rxb5 {[%clk 0:02:09]} 27. Rc7 {[%clk 0:00:58]}  Bg5 {[%clk 0:02:02]} 28. Kf2 {[%clk 0:00:48]}  Ra5 {[%clk 0:02:00]} 29. Rc2 {[%clk 0:00:41]}  Ra3 {[%clk 0:01:59]} 30. Re2 {[%clk 0:00:42]}  b3 {[%clk 0:01:57]} 31. axb3 {[%clk 0:00:41]}  Rxb3 {[%clk 0:01:57]} 32. Nf3 {[%clk 0:00:42]}  Be7 {[%clk 0:01:54]} 33. Nd2 {[%clk 0:00:37]}  Rd3 {[%clk 0:01:50]} 34. Nf3 {[%clk 0:00:36]}  h5 {[%clk 0:01:45]} 35. Rd2 {[%clk 0:00:35]}  Rb3 {[%clk 0:01:43]} 36. Rc2 {[%clk 0:00:34]}  Ba3 {[%clk 0:01:40]} 37. g4 {[%clk 0:00:33]}  Rb1 {[%clk 0:01:33]} 38. Rc7 {[%clk 0:00:28]}  Rb2+ {[%clk 0:01:25]} 39. Kg3 {[%clk 0:00:25]}  Rb3 {[%clk 0:01:24]} 40. Kf2 {[%clk 0:00:20]}  Bc1 {[%clk 0:01:22]} 41. e4 {[%clk 0:00:16]}  Be3+ {[%clk 0:01:20]} 42. Ke2 {[%clk 0:00:15]}  dxe4 {[%clk 0:01:20]} 43. Ne1 {[%clk 0:00:14]}  Bxd4 {[%clk 0:01:18]} 44. Nc2 {[%clk 0:00:13]}  Rb2 {[%clk 0:01:18]} 45. Kd1 {[%clk 0:00:12]}  Bxe5 {[%clk 0:01:17]} 46. gxh5 {[%clk 0:00:06]}  Bxc7 {[%clk 0:01:17]} 0-1


[Site "https://www.chess.com"]

[Event "Titled Tuesday Blitz May 23 Early 2023"]
[White "NLLO777"]
[Black "rionelG"]
[WhiteElo "2387"]
[BlackElo "2200"]
[Result "0-1"]
[Round "03"]
[TimeControl "180+2"]
[Date "2023.05.23"]
[WhiteClock "0:02:00"]
[BlackClock "0:00:24"]

1. e4 {[%clk 0:03:00]}  c5 {[%clk 0:02:59]} 2. Nf3 {[%clk 0:03:00]}  d6 {[%clk 0:03:00]} 3. d4 {[%clk 0:03:00]}  cxd4 {[%clk 0:03:01]} 4. Nxd4 {[%clk 0:03:01]}  Nf6 {[%clk 0:03:01]} 5. Nc3 {[%clk 0:03:02]}  a6 {[%clk 0:03:01]} 6. Bc4 {[%clk 0:03:02]}  e6 {[%clk 0:03:01]} 7. Bb3 {[%clk 0:03:02]}  Nbd7 {[%clk 0:03:01]} 8. O-O {[%clk 0:03:03]}  Nc5 {[%clk 0:03:01]} 9. f4 {[%clk 0:03:03]}  Nfxe4 {[%clk 0:02:59]} 10. Nxe4 {[%clk 0:03:04]}  Nxe4 {[%clk 0:03:00]} 11. Kh1 {[%clk 0:03:03]}  d5 {[%clk 0:02:53]} 12. f5 {[%clk 0:03:03]}  Qh4 {[%clk 0:02:20]} 13. fxe6 {[%clk 0:02:49]}  Ng3+ {[%clk 0:01:40]} 14. Kg1 {[%clk 0:02:45]}  Nxf1 {[%clk 0:01:39]} 15. exf7+ {[%clk 0:02:44]}  Kd8 {[%clk 0:01:29]} 16. Nf3 {[%clk 0:02:30]}  Bc5+ {[%clk 0:01:24]} 17. Kxf1 {[%clk 0:02:00]}  Qf2# {[%clk 0:00:24]} 0-1


[Site "https://www.chess.com"]

[Event "Titled Tuesday Blitz May 23 Early 2023"]
[White "Travadon, Loic"]
[Black "ritanovikova"]
[WhiteFideId "26092131"]
[WhiteElo "2405"]
[BlackElo "2164"]
[Result "0-1"]
[Round "03"]
[TimeControl "180+2"]
[Date "2023.05.23"]
[WhiteClock "0:01:35"]
[BlackClock "0:00:47"]

1. d4 {[%clk 0:03:00]}  e5 {[%clk 0:02:54]} 2. dxe5 {[%clk 0:03:00]}  Nc6 {[%clk 0:02:52]} 3. Nf3 {[%clk 0:02:59]}  Qe7 {[%clk 0:02:52]} 4. Nc3 {[%clk 0:02:48]}  Nxe5 {[%clk 0:02:49]} 5. Bf4 {[%clk 0:02:36]}  Nxf3+ {[%clk 0:02:46]} 6. gxf3 {[%clk 0:02:37]}  Qb4 {[%clk 0:02:44]} 7. Bc1 {[%clk 0:02:31]}  Nf6 {[%clk 0:02:42]} 8. e4 {[%clk 0:02:30]}  Bc5 {[%clk 0:02:38]} 9. a3 {[%clk 0:02:29]}  Qb6 {[%clk 0:02:35]} 10. Qe2 {[%clk 0:02:21]}  Bd4 {[%clk 0:02:31]} 11. Rg1 {[%clk 0:02:20]}  g6 {[%clk 0:02:16]} 12. Bh3 {[%clk 0:02:14]}  d6 {[%clk 0:02:13]} 13. Bxc8 {[%clk 0:02:13]}  Rxc8 {[%clk 0:02:14]} 14. Qb5+ {[%clk 0:02:02]}  Qxb5 {[%clk 0:02:07]} 15. Nxb5 {[%clk 0:02:03]}  Bb6 {[%clk 0:02:05]} 16. Be3 {[%clk 0:02:03]}  Bxe3 {[%clk 0:02:00]} 17. fxe3 {[%clk 0:02:04]}  a6 {[%clk 0:02:00]} 18. Nc3 {[%clk 0:02:03]}  O-O {[%clk 0:01:44]} 19. O-O-O {[%clk 0:02:03]}  b5 {[%clk 0:01:36]} 20. Nd5 {[%clk 0:02:00]}  Nxd5 {[%clk 0:01:30]} 21. exd5 {[%clk 0:02:01]}  Rce8 {[%clk 0:01:25]} 22. e4 {[%clk 0:02:01]}  f5 {[%clk 0:01:25]} 23. Rd4 {[%clk 0:01:57]}  fxe4 {[%clk 0:01:23]} 24. fxe4 {[%clk 0:01:56]}  Rf4 {[%clk 0:01:23]} 25. Re1 {[%clk 0:01:53]}  Rf2 {[%clk 0:01:20]} 26. a4 {[%clk 0:01:53]}  Rxh2 {[%clk 0:01:19]} 27. axb5 {[%clk 0:01:52]}  axb5 {[%clk 0:01:19]} 28. Rb4 {[%clk 0:01:53]}  Rh4 {[%clk 0:01:09]} 29. Rxb5 {[%clk 0:01:52]}  Rhxe4 {[%clk 0:01:08]} 30. Rxe4 {[%clk 0:01:52]}  Rxe4 {[%clk 0:01:09]} 31. Rb7 {[%clk 0:01:51]}  Re7 {[%clk 0:01:07]} 32. b4 {[%clk 0:01:50]}  h5 {[%clk 0:01:04]} 33. b5 {[%clk 0:01:50]}  Kf7 {[%clk 0:01:04]} 34. c4 {[%clk 0:01:50]}  h4 {[%clk 0:01:03]} 35. c5 {[%clk 0:01:50]}  h3 {[%clk 0:00:52]} 36. Rb8 {[%clk 0:01:48]}  Kg7 {[%clk 0:00:50]} 37. cxd6 {[%clk 0:01:35]}  cxd6 {[%clk 0:00:47]} 0-1


[Site "https://www.chess.com"]

[Event "Titled Tuesday Blitz May 23 Early 2023"]
[White "Topalov, Aleksandar"]
[Black "Larina, Maria"]
[WhiteFideId "925659"]
[BlackFideId "24113182"]
[WhiteElo "2151"]
[BlackElo "1848"]
[Result "1/2-1/2"]
[Round "03"]
[TimeControl "180+2"]
[Date "2023.05.23"]
[WhiteClock "0:00:08"]
[BlackClock "0:00:06"]

1. b3 {[%clk 0:03:00]}  e5 {[%clk 0:02:59]} 2. Bb2 {[%clk 0:02:58]}  d6 {[%clk 0:02:59]} 3. d4 {[%clk 0:02:56]}  exd4 {[%clk 0:02:54]} 4. Qxd4 {[%clk 0:02:55]}  Nc6 {[%clk 0:02:54]} 5. Qf4 {[%clk 0:02:55]}  Qd7 {[%clk 0:02:36]} 6. Nc3 {[%clk 0:02:41]}  Nf6 {[%clk 0:02:25]} 7. O-O-O {[%clk 0:02:29]}  Be7 {[%clk 0:02:18]} 8. e4 {[%clk 0:02:25]}  Qg4 {[%clk 0:02:14]} 9. Qe3 {[%clk 0:02:10]}  a6 {[%clk 0:01:48]} 10. f3 {[%clk 0:02:08]}  Qg6 {[%clk 0:01:37]} 11. Kb1 {[%clk 0:01:54]}  O-O {[%clk 0:01:33]} 12. Nd5 {[%clk 0:01:51]}  Bd8 {[%clk 0:01:16]} 13. Nf4 {[%clk 0:01:36]}  Qh6 {[%clk 0:01:12]} 14. h4 {[%clk 0:01:33]}  Nh5 {[%clk 0:01:08]} 15. Nge2 {[%clk 0:01:30]}  Nxf4 {[%clk 0:01:04]} 16. Nxf4 {[%clk 0:01:30]}  Bg5 {[%clk 0:00:47]} 17. hxg5 {[%clk 0:01:24]}  Qxh1 {[%clk 0:00:46]} 18. Be2 {[%clk 0:01:07]}  Qh2 {[%clk 0:00:45]} 19. g4 {[%clk 0:01:06]}  Ne5 {[%clk 0:00:43]} 20. Nh5 {[%clk 0:00:53]}  Be6 {[%clk 0:00:35]} 21. Nxg7 {[%clk 0:00:20]}  Kxg7 {[%clk 0:00:35]} 22. f4 {[%clk 0:00:20]}  Bd7 {[%clk 0:00:28]} 23. fxe5 {[%clk 0:00:18]}  dxe5 {[%clk 0:00:29]} 24. Qc3 {[%clk 0:00:17]}  Bc6 {[%clk 0:00:25]} 25. Bd3 {[%clk 0:00:15]}  Rfe8 {[%clk 0:00:23]} 26. Rf1 {[%clk 0:00:14]}  Rad8 {[%clk 0:00:20]} 27. a3 {[%clk 0:00:14]}  Rd7 {[%clk 0:00:20]} 28. Rf5 {[%clk 0:00:14]}  Qg3 {[%clk 0:00:17]} 29. Ka2 {[%clk 0:00:11]}  Kg6 {[%clk 0:00:15]} 30. Qd2 {[%clk 0:00:09]}  Qxg4 {[%clk 0:00:14]} 31. Rf6+ {[%clk 0:00:09]}  Kg7 {[%clk 0:00:14]} 32. Qf2 {[%clk 0:00:09]}  Re6 {[%clk 0:00:12]} 33. Rf5 {[%clk 0:00:09]}  Rg6 {[%clk 0:00:11]} 34. Rxe5 {[%clk 0:00:09]}  Kf8 {[%clk 0:00:08]} 35. Rf5 {[%clk 0:00:08]}  Re7 {[%clk 0:00:07]} 36. e5 {[%clk 0:00:07]}  Rge6 {[%clk 0:00:07]} 37. Rf6 {[%clk 0:00:07]}  Qh5 {[%clk 0:00:06]} 38. g6 {[%clk 0:00:06]}  hxg6 {[%clk 0:00:06]} 39. Rf4 {[%clk 0:00:06]}  Qg5 {[%clk 0:00:05]} 40. Rf3 {[%clk 0:00:05]}  Rxe5 {[%clk 0:00:04]} 41. Rg3 {[%clk 0:00:05]}  Qh5 {[%clk 0:00:03]} 42. Rf3 {[%clk 0:00:04]}  Qg5 {[%clk 0:00:01]} 43. Bxe5 {[%clk 0:00:02]}  Rxe5 {[%clk 0:00:01]} 44. Rxf7+ {[%clk 0:00:03]}  Ke8 {[%clk 0:00:01]} 45. Rf8+ {[%clk 0:00:03]}  Kd7 {[%clk 0:00:01]} 46. Qf7+ {[%clk 0:00:03]}  Re7 {[%clk 0:00:02]} 47. Qf6 {[%clk 0:00:03]}  Qxf6 {[%clk 0:00:02]} 48. Rxf6 {[%clk 0:00:03]}  g5 {[%clk 0:00:02]} 49. Rg6 {[%clk 0:00:03]}  Re5 {[%clk 0:00:02]} 50. Kb2 {[%clk 0:00:03]}  Be4 {[%clk 0:00:02]} 51. Bxe4 {[%clk 0:00:02]}  Rxe4 {[%clk 0:00:02]} 52. Rxg5 {[%clk 0:00:03]}  Re7 {[%clk 0:00:03]} 53. Rg6 {[%clk 0:00:03]}  c6 {[%clk 0:00:03]} 54. Rg5 {[%clk 0:00:03]}  Kc7 {[%clk 0:00:04]} 55. b4 {[%clk 0:00:04]}  Rd7 {[%clk 0:00:04]} 56. a4 {[%clk 0:00:04]}  b6 {[%clk 0:00:05]} 57. Kb3 {[%clk 0:00:04]}  Kb7 {[%clk 0:00:05]} 58. c3 {[%clk 0:00:05]}  Re7 {[%clk 0:00:05]} 59. Rg6 {[%clk 0:00:05]}  Kc7 {[%clk 0:00:05]} 60. b5 {[%clk 0:00:05]}  axb5 {[%clk 0:00:05]} 61. axb5 {[%clk 0:00:06]}  cxb5 {[%clk 0:00:05]} 62. Kb4 {[%clk 0:00:07]}  Re5 {[%clk 0:00:04]} 63. Rg7+ {[%clk 0:00:06]}  Kc6 {[%clk 0:00:05]} 64. Rg6+ {[%clk 0:00:07]}  Kc7 {[%clk 0:00:05]} 65. Rg7+ {[%clk 0:00:07]}  Kc6 {[%clk 0:00:06]} 66. Rg6+ {[%clk 0:00:08]}  Kc7 {[%clk 0:00:06]} 1/2-1/2


[Site "https://www.chess.com"]